[Event "Najdorf Memorial-A 2022"]
[Site "Warsaw"]
[Date "2022.07.13"]
[Round "5.4"]
[White "Kaczmarska, Joanna"]
[Black "Celinski, Kamil"]
[Result "1/2-1/2"]
[ECO "A05"]
[WhiteElo "1965"]
[BlackElo "1876"]
[Annotator "ChessBase"]
[PlyCount "131"]
[EventDate "2022.07.09"]
[EventType "swiss"]
[EventCountry "POL"]
[SourceTitle "playchess.com"]
[Source "ChessBase"]
[SourceQuality "1"]
[TimeControl "40/5400+30:1800+30"]

1. Nf3 {[%emt 0:00:02]} Nf6 {[%emt 0:00:08]} 2. g3 {[%emt 0:00:16]} b5 {[%emt 0:00:07]} 3. Bg2 {[%emt 0:01:04]} Bb7 {[%emt 0:00:05]} 4. O-O {[%emt 0:00:35]} e6 {[%emt 0:00:26]} 5. d3 {[%emt 0:01:29]} Be7 {[%emt 0:00:12]} 6. e4 {[%emt 0:00:17]} d6 {[%emt 0:00:31]} 7. Nbd2 {[%emt 0:04:25]} c5 {[%emt 0:00:31]} 8. Qe2 {[%emt 0:00:53]} Nbd7 {[%emt 0:02:45]} 9. Rd1 {[%emt 0:07:17]} O-O {[%emt 0:02:22]} 10. h3 {[%emt 0:01:09]} a5 {[%emt 0:06:13]} 11. Nf1 {[%emt 0:01:07]} Qc7 {[%emt 0:03:17]} 12. g4 {[%emt 0:02:30]} Rfc8 {[%emt 0:02:21]} 13. g5 {[%emt 0:04:15]} Nh5 {[%emt 0:01:46]} 14. Nh4 {[%emt 0:08:21]} g6 {[%emt 0:02:00]} 15. f4 {[%emt 0:00:15]} d5 {[%emt 0:26:57]} 16. exd5 {[%emt 0:23:56]} exd5 {[%emt 0:11:23]} 17. Nf5 {[%emt 0:00:44]} Bf8 {[%emt 0:01:00]} 18. Qf3 {[%emt 0:01:20]} Rab8 {[%emt 0:03:32]} 19. N1g3 {[%emt 0:01:17]} Nxg3 {[%emt 0:07:59]} 20. Nxg3 {[%emt 0:00:16]} Bd6 {[%emt 0:02:51]} 21. Bd2 {[%emt 0:01:33]} Nf8 {[%emt 0:01:13]} 22. Qg4 {[%emt 0:05:39]} Re8 {[%emt 0:03:52]} 23. c4 {[%emt 0:05:22]} bxc4 {[%emt 0:05:45]} 24. dxc4 {[%emt 0:00:24]} d4 {[%emt 0:00:40]} 25. Bxb7 {[%emt 0:01:36]} Rxb7 {[%emt 0:00:42]} 26. Re1 {[%emt 0:04:56]} Qc6 {[%emt 0:04:33]} 27. Rxe8 {[%emt 0:03:06]} Qxe8 28. Qf3 Re7 {[%emt 0:00:34]} 29. Qd5 {[%emt 0:06:34]} Bc7 {[%emt 0:01:11]} 30. Rf1 {[%emt 0:01:06]} Qd8 {[%emt 0:05:32]} 31. Ne4 {[%emt 0:05:48]} Qxd5 {[%emt 0:00:50]} 32. Nf6+ {[%emt 0:00:05]} Kg7 {[%emt 0:00:03]} 33. Nxd5 {[%emt 0:00:07]} Re2 {[%emt 0:00:52]} 34. Rf2 {[%emt 0:00:04]} Rxf2 {[%emt 0:00:22]} 35. Kxf2 {[%emt 0:00:05]} Bd8 {[%emt 0:00:02]} 36. Kf3 {[%emt 0:00:34]} Nd7 {[%emt 0:01:34]} 37. Ke4 {[%emt 0:00:08]} a4 {[%emt 0:01:31]} 38. b3 {[%emt 0:04:53]} axb3 {[%emt 0:01:22]} 39. axb3 {[%emt 0:00:07]} h6 {[%emt 0:01:01]} 40. b4 {[%emt 0:00:00]} hxg5 {[%emt 0:00:00]} 41. fxg5 {[%emt 0:02:46]} cxb4 {[%emt 0:03:51]} 42. Nxb4 {[%emt 0:00:52]} Nc5+ {[%emt 0:00:08]} 43. Kd5 {[%emt 0:00:25]} Nb3 {[%emt 0:06:24]} 44. Bf4 {[%emt 0:00:10]} f6 {[%emt 0:04:26]} 45. h4 {[%emt 0:06:26]} fxg5 {[%emt 0:00:30]} 46. hxg5 {[%emt 0:00:30]} Kf7 {[%emt 0:00:00]} 47. Nd3 {[%emt 0:13:04]} Ke8 {[%emt 0:03:07]} 48. c5 {[%emt 0:05:38]} Ba5 {[%emt 0:02:59]} 49. Kc4 {[%emt 0:03:31]} Nd2+ {[%emt 0:00:13]} 50. Kxd4 {[%emt 0:02:55]} Nf3+ {[%emt 0:00:01]} 51. Ke4 {[%emt 0:00:23]} Nd2+ {[%emt 0:00:35]} 52. Kd5 {[%emt 0:00:12]} Nf3 {[%emt 0:00:38]} 53. Ne5 {[%emt 0:03:52]} Nxe5 {[%emt 0:03:06]} 54. Kxe5 {[%emt 0:01:46]} Bc7+ {[%emt 0:00:05]} 55. Ke4 {[%emt 0:00:12]} Ba5 {[%emt 0:00:33]} 56. Kd5 {[%emt 0:00:32]} Kd7 {[%emt 0:00:04]} 57. c6+ {[%emt 0:00:36]} Kc8 {[%emt 0:00:20]} 58. Kc5 {[%emt 0:01:26]} Bd8 {[%emt 0:00:16]} 59. Kd5 {[%emt 0:00:32]} Ba5 {[%emt 0:00:42]} 60. Kc4 {[%emt 0:00:34]} Bb6 {[%emt 0:00:38]} 61. Kb5 {[%emt 0:00:28]} Bf2 {[%emt 0:01:15]} 62. Ka6 {[%emt 0:00:32]} Bh4 {[%emt 0:00:52]} 63. Ka5 {[%emt 0:00:23]} Be1+ {[%emt 0:00:32]} 64. Kb5 {[%emt 0:00:34]} Bf2 {[%emt 0:00:04]} 65. Kc4 {[%emt 0:00:22]} Bb6 {[%emt 0:00:05]} 66. Kd5 {[%emt 0:00:18]} 1/2-1/2

[Event "Najdorf Memorial-A 2022"]
[Site "Warsaw"]
[Date "2022.07.13"]
[Round "5.5"]
[White "Kazmierowski, Tymon"]
[Black "Hemmerling, Jaroslaw"]
[Result "1-0"]
[ECO "C10"]
[WhiteElo "1961"]
[BlackElo "1854"]
[Annotator "ChessBase"]
[PlyCount "59"]
[EventDate "2022.07.09"]
[EventType "swiss"]
[EventCountry "POL"]
[SourceTitle "playchess.com"]
[Source "ChessBase"]
[SourceQuality "1"]
[TimeControl "40/5400+30:1800+30"]

1. e4 {[%emt 0:00:01]} e6 {[%emt 0:00:07]} 2. d4 {[%emt 0:00:04]} d5 {[%emt 0:00:05]} 3. Nd2 {[%emt 0:00:05]} dxe4 {[%emt 0:02:35]} 4. Nxe4 {[%emt 0:00:22]} Nd7 {[%emt 0:00:02]} 5. Nf3 {[%emt 0:00:35]} Ngf6 {[%emt 0:00:03]} 6. Bd3 {[%emt 0:01:11]} Nxe4 {[%emt 0:00:13]} 7. Bxe4 {[%emt 0:00:01]} Be7 {[%emt 0:18:09]} 8. O-O {[%emt 0:02:21]} Nf6 {[%emt 0:05:28]} 9. Bd3 {[%emt 0:01:01]} O-O {[%emt 0:00:03]} 10. Bf4 {[%emt 0:01:28]} c5 {[%emt 0:14:52]} 11. dxc5 {[%emt 0:02:38]} Bxc5 {[%emt 0:00:01]} 12. Qe2 {[%emt 0:01:09]} Be7 {[%emt 0:14:23]} 13. Rad1 {[%emt 0:02:07]} Qa5 {[%emt 0:00:13]} 14. Bc4 {[%emt 0:05:52]} Qf5 {[%emt 0:22:33]} 15. Bg5 {[%emt 0:19:59]} a6 {[%emt 0:01:29]} 16. h3 {[%emt 0:03:01]} Qa5 {[%emt 0:05:31]} 17. Ne5 {[%emt 0:07:04]} Rd8 {[%emt 0:00:02]} 18. Rxd8+ {[%emt 0:02:30]} Qxd8 {[%emt 0:00:02]} 19. Rd1 {[%emt 0:00:52]} Qe8 {[%emt 0:00:02]} 20. Qf3 {[%emt 0:05:33]} Rb8 {[%emt 0:09:01]} 21. Qf4 {[%emt 0:10:47]} Ra8 {[%emt 0:04:15]} 22. Bb3 {[%emt 0:16:57]} Nd7 {[%emt 0:00:58]} 23. Bxe7 {[%emt 0:01:59]} Qxe7 {[%emt 0:00:18]} 24. Nxd7 {[%emt 0:03:55]} Bxd7 {[%emt 0:00:01]} 25. Qc7 {[%emt 0:00:05]} Rd8 {[%emt 0:00:03]} 26. Qxb7 {[%emt 0:00:17]} Kf8 {[%emt 0:01:42]} 27. Qc7 {[%emt 0:00:17]} Ke8 {[%emt 0:00:14]} 28. c4 {[%emt 0:03:57]} Rc8 {[%emt 0:00:04]} 29. Qb7 {[%emt 0:00:15]} a5 {[%emt 0:00:26]} 30. Ba4 {[%emt 0:00:23]} 1-0

[Event "Najdorf Memorial-A 2022"]
[Site "Warsaw"]
[Date "2022.07.13"]
[Round "5.6"]
[White "Danielyan, Vahe"]
[Black "Dalkowski, Rafal"]
[Result "1-0"]
[ECO "B36"]
[WhiteElo "2295"]
[BlackElo "2120"]
[Annotator "ChessBase"]
[PlyCount "65"]
[EventDate "2022.07.09"]
[EventType "swiss"]
[EventCountry "POL"]
[SourceTitle "playchess.com"]
[Source "ChessBase"]
[SourceQuality "1"]
[TimeControl "40/5400+30:1800+30"]

1. e4 {[%emt 0:00:02]} c5 {[%emt 0:00:05]} 2. Nf3 {[%emt 0:00:08]} g6 {[%emt 0:00:05]} 3. d4 {[%emt 0:02:05]} cxd4 {[%emt 0:00:20]} 4. Nxd4 {[%emt 0:00:05]} Nc6 {[%emt 0:00:11]} 5. c4 {[%emt 0:00:08]} Nf6 {[%emt 0:00:06]} 6. Nc3 {[%emt 0:00:04]} Nxd4 {[%emt 0:00:04]} 7. Qxd4 {[%emt 0:00:04]} d6 {[%emt 0:00:05]} 8. Be3 {[%emt 0:00:11]} Bg7 {[%emt 0:00:05]} 9. Be2 {[%emt 0:00:11]} O-O {[%emt 0:00:06]} 10. Qd2 {[%emt 0:00:04]} Be6 {[%emt 0:00:04]} 11. O-O {[%emt 0:00:21]} Qa5 {[%emt 0:01:09]} 12. Rac1 {[%emt 0:02:58]} Rfc8 {[%emt 0:00:52]} 13. b3 {[%emt 0:00:20]} a6 {[%emt 0:01:52]} 14. f4 {[%emt 0:00:05]} b5 {[%emt 0:02:23]} 15. f5 {[%emt 0:01:48]} Bd7 {[%emt 0:01:39]} 16. c5 {[%emt 0:00:27]} b4 {[%emt 0:02:10]} 17. Nd5 {[%emt 0:02:58]} Nxd5 18. Qxd5 {[%emt 0:01:10]} Bc6 {[%emt 0:15:14]} 19. Qc4 {[%emt 0:01:35]} Bb5 {[%emt 0:00:58]} 20. Qc2 {[%emt 0:00:12]} dxc5 {[%emt 0:04:44]} 21. Bc4 {[%emt 0:01:59]} Bxc4 {[%emt 0:12:22]} 22. Qxc4 {[%emt 0:00:31]} gxf5 {[%emt 0:04:30]} 23. Rxf5 {[%emt 0:01:16]} e6 {[%emt 0:00:14]} 24. Rg5 {[%emt 0:00:39]} Kh8 {[%emt 0:02:30]} 25. Rf1 {[%emt 0:00:37]} Ra7 {[%emt 0:01:28]} 26. e5 {[%emt 0:00:50]} Bh6 {[%emt 0:06:56]} 27. Qh4 {[%emt 0:10:59]} Bxg5 {[%emt 0:01:24]} 28. Bxg5 {[%emt 0:00:04]} f5 {[%emt 0:00:33]} 29. Bf6+ {[%emt 0:00:08]} Kg8 {[%emt 0:01:16]} 30. Rf3 {[%emt 0:00:14]} Kf8 {[%emt 0:05:07]} 31. Rg3 {[%emt 0:03:11]} Rcc7 {[%emt 0:10:01]} 32. Qg5 {[%emt 0:01:07]} Ke8 {[%emt 0:02:13]} 33. Rd3 {[%emt 0:00:10]} 1-0

[Event "Najdorf Memorial-A 2022"]
[Site "Warsaw"]
[Date "2022.07.13"]
[Round "5.6"]
[White "Kutowski, Marcel"]
[Black "Bartodziej, Bartosz"]
[Result "1-0"]
[ECO "B92"]
[WhiteElo "1961"]
[BlackElo "1809"]
[Annotator "ChessBase"]
[PlyCount "119"]
[EventDate "2022.07.09"]
[EventType "swiss"]
[EventCountry "POL"]
[SourceTitle "playchess.com"]
[Source "ChessBase"]
[SourceQuality "1"]
[TimeControl "40/5400+30:1800+30"]

1. e4 {[%emt 0:00:02]} c5 {[%emt 0:00:06]} 2. Nf3 {[%emt 0:00:04]} d6 {[%emt 0:00:04]} 3. d4 {[%emt 0:00:05]} cxd4 {[%emt 0:00:06]} 4. Nxd4 {[%emt 0:00:04]} Nf6 {[%emt 0:00:07]} 5. Nc3 {[%emt 0:00:04]} a6 {[%emt 0:00:08]} 6. Be2 {[%emt 0:00:40]} e5 {[%emt 0:00:10]} 7. Nb3 {[%emt 0:00:04]} Be7 {[%emt 0:00:08]} 8. Be3 {[%emt 0:00:04]} Be6 {[%emt 0:00:37]} 9. Nd5 {[%emt 0:00:20]} Nbd7 {[%emt 0:00:15]} 10. Qd3 {[%emt 0:00:11]} Bxd5 {[%emt 0:01:21]} 11. exd5 {[%emt 0:00:26]} O-O {[%emt 0:00:42]} 12. g4 {[%emt 0:03:00]} Ne8 {[%emt 0:10:35]} 13. h4 {[%emt 0:04:06]} Rc8 {[%emt 0:12:10]} 14. O-O-O {[%emt 0:06:10]} b5 {[%emt 0:13:53]} 15. g5 {[%emt 0:04:55]} Nb6 {[%emt 0:04:30]} 16. Bg4 {[%emt 0:09:01]} Rc4 {[%emt 0:16:14]} 17. Bf5 {[%emt 0:08:02]} g6 {[%emt 0:03:32]} 18. Be4 {[%emt 0:01:57]} f5 {[%emt 0:22:14]} 19. gxf6 {[%emt 0:02:03]} Nxf6 {[%emt 0:01:07]} 20. Nd2 {[%emt 0:04:37]} Ra4 {[%emt 0:00:24]} 21. h5 {[%emt 0:10:14]} Nc4 {[%emt 0:04:23]} 22. f3 {[%emt 0:13:17]} Nxe3 {[%emt 0:04:38]} 23. Qxe3 {[%emt 0:04:43]} Nxe4 {[%emt 0:00:04]} 24. Nxe4 {[%emt 0:02:19]} Rf4 {[%emt 0:00:02]} 25. Kb1 {[%emt 0:01:57]} Qf8 {[%emt 0:01:18]} 26. hxg6 {[%emt 0:01:33]} h6 {[%emt 0:01:21]} 27. g7 {[%emt 0:10:38]} Kxg7 {[%emt 0:00:30]} 28. b3 {[%emt 0:01:12]} Rd4 {[%emt 0:00:49]} 29. Rxd4 {[%emt 0:01:13]} exd4 {[%emt 0:00:02]} 30. Qxd4+ {[%emt 0:02:45]} Kh7 {[%emt 0:00:01]} 31. Qa7 {[%emt 0:04:03]} Qf7 {[%emt 0:00:01]} 32. Qxa6 {[%emt 0:00:46]} Qxd5 {[%emt 0:00:14]} 33. Qa7 {[%emt 0:00:24]} Qf7 {[%emt 0:00:21]} 34. Qe3 {[%emt 0:00:33]} d5 {[%emt 0:00:26]} 35. Nc3 {[%emt 0:01:12]} d4 {[%emt 0:02:58]} 36. Qd3+ {[%emt 0:00:42]} Qf5 {[%emt 0:00:01]} 37. Nxb5 {[%emt 0:03:24]} Qxd3 {[%emt 0:00:10]} 38. cxd3 {[%emt 0:00:12]} Rxf3 {[%emt 0:00:05]} 39. Rd1 {[%emt 0:01:51]} Bc5 {[%emt 0:03:23]} 40. a3 {[%emt 0:00:00]} Rf5 {[%emt 0:00:00]} 41. Rh1 {[%emt 0:13:03]} Kg6 {[%emt 0:03:33]} 42. Rh2 {[%emt 0:03:59]} h5 {[%emt 0:00:58]} 43. Kb2 {[%emt 0:01:42]} Kg5 {[%emt 0:02:36]} 44. b4 {[%emt 0:00:59]} Bxb4 {[%emt 0:08:23]} 45. Nxd4 {[%emt 0:01:59]} Bxa3+ {[%emt 0:12:00]} 46. Kxa3 {[%emt 0:00:10]} Rd5 {[%emt 0:00:04]} 47. Nf3+ {[%emt 0:04:16]} Kg4 {[%emt 0:00:09]} 48. Ne1 {[%emt 0:00:40]} Kg3 {[%emt 0:00:22]} 49. Rh1 {[%emt 0:01:19]} h4 {[%emt 0:02:39]} 50. Kb4 {[%emt 0:00:48]} h3 {[%emt 0:01:31]} 51. Kc4 {[%emt 0:01:11]} Re5 {[%emt 0:03:39]} 52. d4 {[%emt 0:00:17]} Re8 {[%emt 0:00:16]} 53. d5 {[%emt 0:00:43]} h2 {[%emt 0:00:27]} 54. d6 {[%emt 0:00:36]} Re6 {[%emt 0:00:55]} 55. Kd5 {[%emt 0:01:11]} Re2 {[%emt 0:00:19]} 56. d7 {[%emt 0:02:28]} Rd2+ {[%emt 0:00:03]} 57. Ke6 {[%emt 0:01:04]} Rd4 {[%emt 0:00:56]} 58. Rxh2 {[%emt 0:00:56]} Re4+ {[%emt 0:00:20]} 59. Kd5 {[%emt 0:00:17]} Rxe1 {[%emt 0:00:45]} 60. Rd2 {[%emt 0:00:07]} 1-0

[Event "Najdorf Memorial-A 2022"]
[Site "Warsaw"]
[Date "2022.07.13"]
[Round "5.7"]
[White "Backiel, Hubert"]
[Black "Mickiewicz, Piotr"]
[Result "1/2-1/2"]
[ECO "B47"]
[WhiteElo "2045"]
[BlackElo "2284"]
[Annotator "ChessBase"]
[PlyCount "256"]
[EventDate "2022.07.09"]
[EventType "swiss"]
[EventCountry "POL"]
[SourceTitle "playchess.com"]
[Source "ChessBase"]
[SourceQuality "1"]
[TimeControl "40/5400+30:1800+30"]

1. e4 {[%emt 0:06:31]} c5 {[%emt 0:08:36]} 2. Nf3 {[%emt 0:00:06]} e6 {[%emt 0:00:24]} 3. d4 {[%emt 0:00:11]} cxd4 {[%emt 0:00:06]} 4. Nxd4 {[%emt 0:00:11]} Nc6 {[%emt 0:00:50]} 5. Nc3 {[%emt 0:00:50]} Qc7 {[%emt 0:01:47]} 6. g3 {[%emt 0:02:57]} d6 {[%emt 0:01:30]} 7. Bg2 {[%emt 0:02:02]} Nf6 {[%emt 0:18:24]} 8. O-O {[%emt 0:08:25]} Be7 {[%emt 0:18:15]} 9. Ncb5 {[%emt 0:16:35]} Qb8 {[%emt 0:11:50]} 10. c4 {[%emt 0:05:39]} Nxd4 {[%emt 0:10:45]} 11. Nxd4 {[%emt 0:01:29]} O-O {[%emt 0:00:45]} 12. b3 {[%emt 0:00:53]} a6 {[%emt 0:01:52]} 13. Bb2 {[%emt 0:00:54]} Bd7 {[%emt 0:01:11]} 14. Qe2 {[%emt 0:03:18]} Rd8 {[%emt 0:08:26]} 15. Kh1 {[%emt 0:04:15]} Qc7 {[%emt 0:00:57]} 16. f4 {[%emt 0:00:47]} Be8 {[%emt 0:00:26]} 17. Rae1 {[%emt 0:06:22]} Nd7 {[%emt 0:04:35]} 18. f5 {[%emt 0:18:13]} e5 {[%emt 0:00:18]} 19. Nc2 {[%emt 0:00:06]} b5 {[%emt 0:01:30]} 20. Ne3 {[%emt 0:00:34]} Nf6 {[%emt 0:01:03]} 21. g4 {[%emt 0:07:45]} h6 {[%emt 0:00:03]} 22. h4 {[%emt 0:01:00]} Bc6 {[%emt 0:02:40]} 23. Nd5 {[%emt 0:02:42]} Bxd5 {[%emt 0:00:06]} 24. cxd5 {[%emt 0:00:07]} Nh7 {[%emt 0:01:55]} 25. Qf2 {[%emt 0:02:07]} Rdc8 {[%emt 0:00:06]} 26. Bc1 {[%emt 0:01:16]} Qd8 {[%emt 0:00:10]} 27. g5 {[%emt 0:01:27]} hxg5 {[%emt 0:00:51]} 28. f6 {[%emt 0:00:21]} Bxf6 {[%emt 0:00:53]} 29. hxg5 {[%emt 0:00:23]} Bxg5 {[%emt 0:02:28]} 30. Qxf7+ {[%emt 0:01:04]} Kh8 {[%emt 0:00:01]} 31. Qh5 {[%emt 0:03:32]} Bxc1 {[%emt 0:01:40]} 32. Rxc1 {[%emt 0:00:04]} Qe7 {[%emt 0:01:19]} 33. Bh3 {[%emt 0:00:39]} Rxc1 {[%emt 0:00:17]} 34. Rxc1 {[%emt 0:00:01]} g6 {[%emt 0:00:30]} 35. Qxg6 {[%emt 0:01:41]} Qh4 {[%emt 0:00:13]} 36. Qg4 {[%emt 0:00:17]} Qh6 {[%emt 0:00:49]} 37. Rc8+ {[%emt 0:01:31]} Rxc8 {[%emt 0:00:02]} 38. Qxc8+ {[%emt 0:00:01]} Nf8 {[%emt 0:00:47]} 39. Kg2 {[%emt 0:01:57]} Qd2+ {[%emt 0:00:23]} 40. Kg1 {[%emt 0:00:00]} Qe1+ {[%emt 0:00:00]} 41. Kh2 {[%emt 0:02:33]} Qf2+ {[%emt 0:05:29]} 42. Kh1 {[%emt 0:00:20]} Qe1+ {[%emt 0:03:17]} 43. Kh2 {[%emt 0:00:08]} Qe2+ {[%emt 0:00:06]} 44. Kg1 {[%emt 0:00:08]} Qe3+ {[%emt 0:00:10]} 45. Kh2 {[%emt 0:00:07]} Qf4+ {[%emt 0:00:21]} 46. Kg1 {[%emt 0:00:08]} Qg3+ {[%emt 0:04:40]} 47. Kf1 {[%emt 0:02:40]} Qd3+ {[%emt 0:02:15]} 48. Kf2 {[%emt 0:01:52]} Qd4+ {[%emt 0:00:52]} 49. Kf3 {[%emt 0:01:23]} Qd1+ {[%emt 0:01:03]} 50. Kf2 {[%emt 0:03:49]} Qd2+ {[%emt 0:00:31]} 51. Kg1 {[%emt 0:00:14]} Qe3+ {[%emt 0:00:12]} 52. Kh2 {[%emt 0:00:13]} Qf4+ {[%emt 0:06:09]} 53. Kg1 {[%emt 0:00:15]} Qg3+ {[%emt 0:07:47]} 54. Kf1 {[%emt 0:01:02]} Qf3+ {[%emt 0:04:00]} 55. Kg1 {[%emt 0:00:06]} b4 {[%emt 0:01:09]} 56. Bf5 {[%emt 0:00:25]} Qe3+ {[%emt 0:00:31]} 57. Kf1 {[%emt 0:02:57]} Qd3+ {[%emt 0:00:07]} 58. Kf2 {[%emt 0:00:31]} Qd2+ {[%emt 0:00:05]} 59. Kf3 {[%emt 0:00:55]} Qd1+ {[%emt 0:01:20]} 60. Kg3 {[%emt 0:04:09]} Qg1+ {[%emt 0:00:27]} 61. Kf3 {[%emt 0:03:02]} Qf1+ {[%emt 0:00:09]} 62. Ke3 {[%emt 0:00:31]} Qg1+ {[%emt 0:00:05]} 63. Ke2 {[%emt 0:03:06]} Qg2+ {[%emt 0:00:03]} 64. Kd3 {[%emt 0:01:47]} Qf3+ {[%emt 0:00:04]} 65. Kc2 {[%emt 0:00:55]} Qe2+ {[%emt 0:00:56]} 66. Kb1 {[%emt 0:00:44]} Kg8 {[%emt 0:01:52]} 67. Qc2 {[%emt 0:01:27]} Qe1+ {[%emt 0:00:19]} 68. Qc1 {[%emt 0:01:17]} Qg3 {[%emt 0:00:43]} 69. Qd2 {[%emt 0:02:45]} a5 {[%emt 0:00:03]} 70. Kb2 {[%emt 0:00:21]} Ng6 {[%emt 0:01:02]} 71. a3 {[%emt 0:01:43]} Nf4 {[%emt 0:00:07]} 72. axb4 {[%emt 0:01:18]} axb4 {[%emt 0:00:01]} 73. Kc2 {[%emt 0:00:55]} Ng2 {[%emt 0:01:46]} 74. Qxb4 {[%emt 0:01:05]} Ne3+ {[%emt 0:00:02]} 75. Kd2 {[%emt 0:00:15]} Qf2+ {[%emt 0:00:04]} 76. Kd3 {[%emt 0:00:29]} Nxf5 {[%emt 0:00:21]} 77. exf5 {[%emt 0:01:37]} Qf3+ {[%emt 0:00:34]} 78. Kc4 {[%emt 0:01:25]} Qe2+ {[%emt 0:01:01]} 79. Kc3 {[%emt 0:00:18]} Qe1+ {[%emt 0:00:38]} 80. Kc4 {[%emt 0:00:04]} Qf1+ {[%emt 0:00:41]} 81. Kc3 {[%emt 0:00:13]} Qc1+ {[%emt 0:00:21]} 82. Kd3 {[%emt 0:00:11]} Qd1+ {[%emt 0:00:26]} 83. Kc3 {[%emt 0:00:43]} Qf3+ {[%emt 0:00:45]} 84. Kc4 {[%emt 0:00:14]} Qe4+ {[%emt 0:00:16]} 85. Kc3 {[%emt 0:00:08]} Qf3+ {[%emt 0:00:42]} 86. Kc4 {[%emt 0:00:31]} Qf1+ {[%emt 0:00:22]} 87. Kc3 {[%emt 0:00:09]} Qa1+ {[%emt 0:00:40]} 88. Kc2 {[%emt 0:00:25]} Qa2+ {[%emt 0:00:10]} 89. Kc1 {[%emt 0:00:29]} Qa1+ {[%emt 0:00:03]} 90. Kc2 {[%emt 0:00:15]} Qa2+ {[%emt 0:00:09]} 91. Kd3 {[%emt 0:02:00]} Qb1+ {[%emt 0:00:01]} 92. Ke3 {[%emt 0:00:17]} Qg1+ {[%emt 0:00:11]} 93. Kf3 {[%emt 0:00:25]} Qh1+ {[%emt 0:01:05]} 94. Kg4 {[%emt 0:00:17]} Qg2+ {[%emt 0:01:30]} 95. Kh5 {[%emt 0:00:10]} Qxd5 {[%emt 0:00:49]} 96. Qb8+ {[%emt 0:01:35]} Kf7 {[%emt 0:00:31]} 97. Kg5 {[%emt 0:01:38]} Qg2+ {[%emt 0:00:03]} 98. Kh4 {[%emt 0:00:48]} Qh2+ {[%emt 0:00:03]} 99. Kg4 {[%emt 0:01:03]} Qf4+ {[%emt 0:00:07]} 100. Kh3 {[%emt 0:00:16]} Qxf5+ {[%emt 0:00:02]} 101. Kg2 {[%emt 0:00:12]} Qe4+ {[%emt 0:00:32]} 102. Kf2 {[%emt 0:00:15]} Qd4+ {[%emt 0:00:10]} 103. Ke2 {[%emt 0:00:41]} e4 {[%emt 0:00:45]} 104. Qb5 {[%emt 0:00:26]} Kf6 {[%emt 0:00:31]} 105. b4 {[%emt 0:01:17]} d5 {[%emt 0:00:10]} 106. Qc6+ {[%emt 0:00:19]} Kg5 {[%emt 0:00:01]} 107. Qe6 {[%emt 0:01:12]} Qd3+ {[%emt 0:00:37]} 108. Ke1 {[%emt 0:00:28]} Qb1+ {[%emt 0:01:11]} 109. Ke2 {[%emt 0:00:06]} Qb2+ {[%emt 0:00:06]} 110. Kd1 {[%emt 0:00:26]} Qb1+ {[%emt 0:00:36]} 111. Ke2 {[%emt 0:00:00]} Qc2+ {[%emt 0:00:10]} 112. Ke1 {[%emt 0:00:07]} Qc3+ {[%emt 0:01:07]} 113. Ke2 {[%emt 0:00:08]} Qf3+ {[%emt 0:00:19]} 114. Ke1 {[%emt 0:00:25]} Qf5 {[%emt 0:01:43]} 115. Qd6 {[%emt 0:00:48]} Kg4 {[%emt 0:00:38]} 116. Qh2 {[%emt 0:01:19]} Qf3 {[%emt 0:00:30]} 117. Qg1+ {[%emt 0:00:33]} Kf5 {[%emt 0:00:11]} 118. Qd4 {[%emt 0:00:14]} e3 {[%emt 0:00:41]} 119. Qd3+ {[%emt 0:00:09]} Qe4 {[%emt 0:00:27]} 120. Qb5 {[%emt 0:01:05]} Ke5 {[%emt 0:00:47]} 121. Ke2 {[%emt 0:00:40]} Qf4 {[%emt 0:01:15]} 122. Qb8+ {[%emt 0:00:28]} Ke4 {[%emt 0:00:10]} 123. Qxf4+ {[%emt 0:00:28]} Kxf4 {[%emt 0:00:01]} 124. b5 {[%emt 0:00:00]} Ke5 {[%emt 0:00:47]} 125. Kxe3 {[%emt 0:00:07]} d4+ {[%emt 0:00:05]} 126. Kd3 {[%emt 0:00:04]} Kd5 {[%emt 0:00:05]} 127. b6 {[%emt 0:00:05]} Kc6 {[%emt 0:00:02]} 128. Kxd4 {[%emt 0:00:07]} Kxb6 {[%emt 0:00:04]} 1/2-1/2